[Event "LEM Niedersachsen-A-Open 2025"]
[Site "Verden"]
[Date "2025.01.03"]
[Round "4.9"]
[White "Koch, Yannick"]
[Black "Thomas, Jeremy"]
[Result "0-1"]
[ECO "E49"]
[WhiteElo "2024"]
[BlackElo "1935"]
[Annotator "RC"]
[PlyCount "154"]
[EventDate "2024.12.27"]
[EventType "swiss"]
[EventCountry "GER"]
[SourceTitle "playchess.com"]
[Source "ChessBase"]
[SourceQuality "1"]
[TimeControl "40/5400+30:1800+30"]

1. d4 {[%emt 0:04:53]} d5 {[%emt 0:00:19]} 2. c4 {[%emt 0:00:34]} e6 {[%emt 0:00:04]} 3. Nc3 {[%emt 0:00:10]} Bb4 {[%emt 0:00:06]} 4. e3 {[%emt 0:00:56]} Nf6 {[%emt 0:00:09]} 5. a3 {[%emt 0:01:43]} Bxc3+ {[%emt 0:01:37]} 6. bxc3 {[%emt 0:00:02]} O-O {[%emt 0:00:47]} 7. cxd5 {[%emt 0:01:13]} exd5 {[%emt 0:00:27]} 8. Bd3 {[%emt 0:00:26]} b6 {[%emt 0:00:52]} 9. Ne2 {[%emt 0:01:17]} c5 {[%emt 0:03:04]} 10. O-O {[%emt 0:00:37]} Ba6 {[%emt 0:00:36]} 11. Bc2 {[%emt 0:03:14]} Nbd7 {[%emt 0:07:58]} 12. Re1 {[%emt 0:00:14]} Re8 {[%emt 0:01:37]} 13. f3 {[%emt 0:01:10]} Qc7 {[%emt 0:04:27]} 14. Ng3 {[%emt 0:02:23]} Rac8 {[%emt 0:01:03]} 15. Bb1 {[%emt 0:02:42]} Nf8 {[%emt 0:08:19]} 16. Ra2 {[%emt 0:01:10]} Bb7 {[%emt 0:06:29]} 17. Bd3 {[%emt 0:03:26]} Ne6 {[%emt 0:06:47]} 18. Rae2 {[%emt 0:01:23]} Rcd8 {[%emt 0:01:41]} 19. Nf5 {[%emt 0:09:39]} Qc8 {[%emt 0:04:32]} 20. Qa4 {[%emt 0:09:07]} c4 {[%emt 0:13:02]} 21. Bb1 {[%emt 0:00:39]} Qc7 {[%emt 0:04:51]} 22. Qd1 {[%emt 0:03:35]} Bc8 {[%emt 0:03:06]} 23. Qd2 {[%emt 0:01:36]} b5 {[%emt 0:02:18]} 24. e4 {[%emt 0:00:28]} dxe4 {[%emt 0:00:21]} 25. fxe4 {[%emt 0:00:07]} Ng4 {[%emt 0:05:29]} 26. e5 {[%emt 0:02:22]} f6 {[%emt 0:02:31]} 27. Qc2 {[%emt 0:15:34]} fxe5 {[%emt 0:01:59]} 28. dxe5 {[%emt 0:02:09]} Nc5 {[%emt 0:02:04]} 29. Nd6 {[%emt 0:04:13]} Nd3 {[%emt 0:00:11]} 30. Nxe8 {[%emt 0:02:19]} Rxe8 {[%emt 0:00:07]} 31. h3 {[%emt 0:08:26]} Ngxe5 {[%emt 0:02:47]} 32. Be3 {[%emt 0:02:16]} Nf3+ {[%emt 0:10:05]} 33. gxf3 {[%emt 0:03:28]} Qg3+ {[%emt 0:00:02]} 34. Kh1 {[%emt 0:00:19]} Bb7 {[%emt 0:00:33]} 35. Rf1 {[%emt 0:03:41]} Bxf3+ {[%emt 0:00:52]} 36. Rxf3 {[%emt 0:00:32]} Qxf3+ {[%emt 0:00:01]} 37. Kh2 {[%emt 0:00:10]} Rxe3 {[%emt 0:00:31]} 38. Rxe3 {[%emt 0:00:32]} Qxe3 {[%emt 0:00:02]} 39. Qg2 {[%emt 0:00:48]} Qe5+ {[%emt 0:03:54]} 40. Qg3 {[%emt 0:00:39]} Kf7 {[%emt 0:01:34]} 41. Qxe5 {[%emt 0:30:44]} Nxe5 {[%emt 0:30:06]} 42. Be4 {[%emt 0:00:53]} h6 {[%emt 0:00:00]} 43. Kg3 {[%emt 0:00:00]} g5 {[%emt 0:00:00]} 44. Bb7 {[%emt 0:00:00]} a5 {[%emt 0:00:00]} 45. Kf2 {[%emt 0:00:00]} Ke6 {[%emt 0:00:00]} 46. Ke3 {[%emt 0:00:00]} Kd6 {[%emt 0:00:00]} 47. Kd4 {[%emt 0:00:00]} h5 {[%emt 0:00:00]} 48. Ba6 {[%emt 0:00:00]} g4 {[%emt 0:00:00]} 49. hxg4 {[%emt 0:00:00]} hxg4 {[%emt 0:00:00]} 50. Bxb5 {[%emt 0:00:00]} g3 {[%emt 0:00:00]} 51. Ke3 {[%emt 0:00:00]} Kc5 {[%emt 0:00:00]} 52. Ba6 {[%emt 0:00:00]} Ng4+ {[%emt 0:00:00]} 53. Kf3 {[%emt 0:00:00]} Nf2 {[%emt 0:00:00]} 54. Kxg3 {[%emt 0:00:00]} Ne4+ {[%emt 0:00:00]} 55. Kf4 {[%emt 0:00:00]} Nxc3 {[%emt 0:00:00]} 56. Ke3 {[%emt 0:00:00]} Nb1 {[%emt 0:00:00]} 57. a4 {[%emt 0:00:00]} Nc3 {[%emt 0:00:00]} 58. Kd2 {[%emt 0:00:00]} Nxa4 {[%emt 0:00:00]} 59. Kc2 {[%emt 0:00:00]} Kb4 {[%emt 0:00:00]} 60. Bc8 {[%emt 0:00:00]} Nc3 {[%emt 0:13:10]} 61. Be6 {[%emt 0:00:00]} a4 {[%emt 0:00:00]} 62. Kb2 {[%emt 0:00:00]} Nd1+ {[%emt 0:00:00]} 63. Kc2 {[%emt 0:00:00]} Ne3+ {[%emt 0:00:00]} 64. Kb2 {[%emt 0:00:00]} Ng2 {[%emt 0:02:00]} 65. Bf5 {[%emt 0:00:00]} Nf4 {[%emt 0:00:00]} 66. Kc2 {[%emt 0:00:00]} Ne2 {[%emt 0:00:00]} 67. Bg6 {[%emt 0:00:00]} Nd4+ {[%emt 0:00:00]} 68. Kb2 {[%emt 0:00:00]} a3+ {[%emt 0:00:00]} 69. Ka2 {[%emt 0:00:00]} c3 {[%emt 0:00:00]} 70. Kb1 {[%emt 0:00:00]} Nb5 {[%emt 0:03:00]} 71. Bf5 {[%emt 0:00:00]} Kc5 {[%emt 0:00:00]} 72. Be6 {[%emt 0:00:00]} Nd4 {[%emt 0:00:00]} 73. Bf7 {[%emt 0:00:00]} c2+ {[%emt 0:00:00]} 74. Kc1 {[%emt 0:00:00]} Kb4 {[%emt 0:00:00]} 75. Kd2 {[%emt 0:00:00]} Nb3+ {[%emt 0:00:00]} 76. Kxc2 {[%emt 0:00:00]} a2 {[%emt 0:00:00]} 77. Bxb3 {[%emt 0:00:00]} a1=Q {[%emt 0:00:00]} 0-1

[Event "LEM Niedersachsen-A-Open 2025"]
[Site "Verden"]
[Date "2025.01.03"]
[Round "4.10"]
[White "Gottschalk, Siegfried"]
[Black "Ophardt, Paul"]
[Result "1/2-1/2"]
[ECO "A81"]
[WhiteElo "1936"]
[BlackElo "2015"]
[Annotator "RC"]
[PlyCount "113"]
[EventDate "2024.12.27"]
[EventType "swiss"]
[EventCountry "GER"]
[SourceTitle "playchess.com"]
[Source "ChessBase"]
[SourceQuality "1"]
[TimeControl "40/5400+30:1800+30"]

1. Nf3 {[%emt 0:00:12]} f5 {[%emt 0:00:32]} 2. g3 {[%emt 0:00:53]} Nf6 {[%emt 0:00:19]} 3. Bg2 {[%emt 0:00:09]} g6 {[%emt 0:00:42]} 4. O-O {[%emt 0:02:44]} Bg7 {[%emt 0:00:14]} 5. d4 {[%emt 0:00:42]} O-O {[%emt 0:00:22]} 6. b4 {[%emt 0:02:53]} c6 {[%emt 0:01:33]} 7. c4 {[%emt 0:06:14]} a5 {[%emt 0:03:49]} 8. bxa5 {[%emt 0:06:31]} Qxa5 {[%emt 0:03:11]} 9. Qb3 {[%emt 0:01:11]} d5 {[%emt 0:09:36]} 10. Nc3 {[%emt 0:09:42]} Nbd7 {[%emt 0:06:50]} 11. cxd5 {[%emt 0:05:04]} cxd5 {[%emt 0:04:42]} 12. Bf4 {[%emt 0:04:29]} Ra6 {[%emt 0:10:47]} 13. a4 {[%emt 0:06:30]} Nb6 {[%emt 0:13:02]} 14. Nb5 {[%emt 0:13:20]} Nc4 {[%emt 0:03:51]} 15. Bc7 {[%emt 0:03:50]} b6 {[%emt 0:00:43]} 16. Bf4 {[%emt 0:01:12]} Bd7 {[%emt 0:07:07]} 17. Rfb1 {[%emt 0:09:42]} Ne4 {[%emt 0:06:31]} 18. Qb4 {[%emt 0:08:20]} Qxb4 {[%emt 0:01:52]} 19. Rxb4 {[%emt 0:00:01]} Bxb5 {[%emt 0:00:18]} 20. Rxb5 {[%emt 0:00:07]} Nc3 {[%emt 0:00:07]} 21. Rb4 {[%emt 0:01:38]} Nxe2+ {[%emt 0:24:52]} 22. Kf1 {[%emt 0:16:06]} Nxf4 {[%emt 0:00:00]} 23. gxf4 {[%emt 0:00:00]} e6 {[%emt 0:00:00]} 24. Kg1 {[%emt 0:00:00]} Rfa8 {[%emt 0:00:00]} 25. Bf1 {[%emt 0:00:00]} Bf8 {[%emt 0:00:00]} 26. Bxc4 {[%emt 0:00:00]} Bxb4 {[%emt 0:00:00]} 27. Bxa6 {[%emt 0:00:00]} Rxa6 {[%emt 0:00:00]} 28. Ng5 {[%emt 0:00:00]} Bd6 {[%emt 0:00:00]} 29. Rc1 {[%emt 0:00:00]} Ra8 {[%emt 0:00:00]} 30. Rc6 {[%emt 0:00:00]} Bxf4 {[%emt 0:00:00]} 31. Nxe6 {[%emt 0:00:07]} Bd2 {[%emt 0:00:00]} 32. Rxb6 {[%emt 0:01:04]} Rxa4 {[%emt 0:00:00]} 33. Rb5 {[%emt 0:00:21]} Ra5 {[%emt 0:00:00]} 34. Rxa5 {[%emt 0:01:18]} Bxa5 {[%emt 0:00:00]} 35. Nf4 {[%emt 0:00:03]} Bb6 {[%emt 0:00:00]} 36. Nxd5 {[%emt 0:00:19]} Bxd4 {[%emt 0:00:00]} 37. Nf4 {[%emt 0:00:44]} Kf7 {[%emt 0:00:07]} 38. Kg2 {[%emt 0:00:24]} g5 {[%emt 0:01:39]} 39. Ne2 {[%emt 0:00:43]} Bb2 {[%emt 0:00:33]} 40. h3 {[%emt 0:02:03]} Kg6 {[%emt 0:00:27]} 41. Kf3 {[%emt 0:31:04]} Be5 {[%emt 0:33:33]} 42. Kg2 {[%emt 0:00:00]} Kf6 {[%emt 0:00:00]} 43. Kf3 {[%emt 0:00:00]} Ke6 {[%emt 0:00:00]} 44. Ke3 {[%emt 0:00:00]} Kd5 {[%emt 0:00:00]} 45. Kf3 {[%emt 0:00:00]} Kc4 {[%emt 0:00:00]} 46. Ke3 {[%emt 0:00:00]} Kd5 {[%emt 0:00:00]} 47. Kf3 {[%emt 0:00:00]} h5 {[%emt 0:00:00]} 48. Ke3 {[%emt 0:00:00]} Bf6 {[%emt 0:00:00]} 49. Kf3 {[%emt 0:00:00]} h4 {[%emt 0:00:00]} 50. Ke3 {[%emt 0:00:00]} Be5 {[%emt 0:00:00]} 51. Kf3 {[%emt 0:00:00]} Kc4 {[%emt 0:00:00]} 52. Kg2 {[%emt 0:00:00]} Kd3 {[%emt 0:00:00]} 53. Kf1 {[%emt 0:00:00]} g4 {[%emt 0:00:00]} 54. Ng1 {[%emt 0:02:56]} Bh2 {[%emt 0:00:00]} 55. hxg4 {[%emt 0:00:29]} fxg4 {[%emt 0:00:00]} 56. f3 {[%emt 0:01:42]} g3 {[%emt 0:00:00]} 57. Nh3 {[%emt 0:00:10]} 1/2-1/2

[Event "LEM Niedersachsen-A-Open 2025"]
[Site "Verden"]
[Date "2025.01.03"]
[Round "4.11"]
[White "Soellig, Martin"]
[Black "Schumann, Steffen"]
[Result "1-0"]
[ECO "B26"]
[WhiteElo "1930"]
[BlackElo "2002"]
[Annotator "NA RC"]
[PlyCount "87"]
[EventDate "2024.12.27"]
[EventType "swiss"]
[EventCountry "GER"]
[SourceTitle "playchess.com"]
[Source "ChessBase"]
[SourceQuality "1"]
[TimeControl "40/5400+30:1800+30"]

1. e4 {[%emt 0:00:03]} c5 {[%emt 0:00:36]} 2. Nc3 {[%emt 0:00:06]} Nc6 {[%emt 0:00:36]} 3. g3 {[%emt 0:00:06]} g6 {[%emt 0:00:03]} 4. Bg2 {[%emt 0:00:07]} Bg7 {[%emt 0:00:02]} 5. Nge2 {[%emt 0:00:14]} d6 {[%emt 0:00:17]} 6. d3 {[%emt 0:00:13]} e6 {[%emt 0:00:07]} 7. O-O {[%emt 0:00:31]} Nge7 {[%emt 0:00:19]} 8. Bg5 {[%emt 0:00:25]} O-O {[%emt 0:01:15]} 9. Qd2 {[%emt 0:00:59]} Rb8 {[%emt 0:01:22]} 10. Bh6 {[%emt 0:00:50]} Bxh6 {[%emt 0:00:24]} 11. Qxh6 {[%emt 0:00:07]} b5 {[%emt 0:01:08]} 12. Rae1 {[%emt 0:02:08]} b4 {[%emt 0:04:55]} 13. Na4 {[%emt 0:06:37]} Bd7 {[%emt 0:05:07]} 14. b3 {[%emt 0:00:28]} Qc7 {[%emt 0:06:11]} 15. Qd2 {[%emt 0:05:03]} Nd4 {[%emt 0:03:09]} 16. Nb2 {[%emt 0:00:55]} Nec6 {[%emt 0:05:40]} 17. f4 {[%emt 0:03:57]} f6 {[%emt 0:06:35]} 18. Nc4 {[%emt 0:03:21]} Nxe2+ {[%emt 0:13:55]} 19. Rxe2 {[%emt 0:02:50]} Nd4 {[%emt 0:04:15]} 20. Ree1 {[%emt 0:01:04]} Bb5 {[%emt 0:01:42]} 21. Ne3 {[%emt 0:04:30]} f5 {[%emt 0:01:53]} 22. Rf2 {[%emt 0:02:29]} a5 {[%emt 0:05:15]} 23. h3 {[%emt 0:02:35]} Bc6 {[%emt 0:11:01]} 24. c3 {[%emt 0:04:27]} bxc3 {[%emt 0:02:57]} 25. Qxc3 {[%emt 0:01:14]} a4 {[%emt 0:02:22]} 26. bxa4 {[%emt 0:03:01]} Rb4 {[%emt 0:00:45]} 27. Nc2 {[%emt 0:02:46]} Nxc2 {[%emt 0:06:09]} 28. Rxc2 {[%emt 0:01:01]} fxe4 {[%emt 0:09:21]} 29. Bxe4 {[%emt 0:03:44]} Rxa4 {[%emt 0:01:36]} 30. Bxc6 {[%emt 0:03:01]} Qxc6 {[%emt 0:00:03]} 31. Rxe6 {[%emt 0:01:13]} Qf3 {[%emt 0:01:38]} 32. Kh2 {[%emt 0:01:29]} Raxf4 {[%emt 0:02:59]} 33. Ree2 {[%emt 0:05:09]} Rd4 {[%emt 0:01:13]} 34. Rcd2 {[%emt 0:01:41]} Qd5 {[%emt 0:00:42]} 35. Rf2 {[%emt 0:04:21]} Rf3 {[%emt 0:01:13]} 36. Rxf3 {[%emt 0:01:01]} Qxf3 {[%emt 0:00:01]} 37. Qc2 {[%emt 0:01:35]} Qd5 {[%emt 0:00:28]} 38. Qb3 {[%emt 0:03:17]} c4 {[%emt 0:00:28]} 39. Qb8+ {[%emt 0:00:31]} Kg7 {[%emt 0:00:06]} 40. Rf2 {[%emt 0:00:16]} Kh6 {[%emt 0:01:53]} 41. Qf8+ {[%emt 0:30:55]} Kg5 {[%emt 0:02:04]} 42. Rf4 {[%emt 0:00:00]} Qe5 {[%emt 0:01:51]} 43. h4+ {[%emt 0:00:00]} Kh5 {[%emt 0:00:01]} 44. g4+ {[%emt 0:00:00]} 1-0

[Event "LEM Niedersachsen-A-Open 2025"]
[Site "Verden"]
[Date "2025.01.03"]
[Round "4.12"]
[White "Ploog, Martin"]
[Black "Langer, Michael S."]
[Result "1-0"]
[ECO "A40"]
[WhiteElo "2001"]
[BlackElo "1933"]
[Annotator "NA RC"]
[PlyCount "25"]
[EventDate "2024.12.27"]
[EventType "swiss"]
[EventCountry "GER"]
[SourceTitle "playchess.com"]
[Source "ChessBase"]
[SourceQuality "1"]
[TimeControl "40/5400+30:1800+30"]

1. c4 {[%emt 0:00:03]} b6 {[%emt 0:00:38]} 2. d4 {[%emt 0:00:15]} Bb7 {[%emt 0:00:23]} 3. Nc3 {[%emt 0:00:11]} e6 {[%emt 0:00:15]} 4. a3 {[%emt 0:00:14]} f5 {[%emt 0:03:24]} 5. d5 {[%emt 0:01:36]} e5 {[%emt 0:02:31]} 6. e4 {[%emt 0:03:29]} Qf6 {[%emt 0:09:24]} 7. exf5 {[%emt 0:02:29]} Bc5 {[%emt 0:06:23]} 8. Bd3 {[%emt 0:07:10]} Na6 {[%emt 0:07:16]} 9. Nf3 {[%emt 0:04:52]} h6 {[%emt 0:02:53]} 10. O-O {[%emt 0:03:43]} Bd6 {[%emt 0:03:28]} 11. Ne4 {[%emt 0:01:51]} Qf7 {[%emt 0:00:19]} 12. b4 {[%emt 0:01:21]} Ne7 {[%emt 0:01:24]} 13. Qe2 {[%emt 0:07:17]} 1-0

[Event "LEM Niedersachsen-A-Open 2025"]
[Site "Verden"]
[Date "2025.01.03"]
[Round "4.13"]
[White "Amrhein, Thorsten"]
[Black "Thieu, Nguyen Gia Bao"]
[Result "1/2-1/2"]
[ECO "B22"]
[WhiteElo "1979"]
[BlackElo "1898"]
[Annotator "NA RC"]
[PlyCount "38"]
[EventDate "2024.12.27"]
[EventType "swiss"]
[EventCountry "GER"]
[SourceTitle "playchess.com"]
[Source "ChessBase"]
[SourceQuality "1"]
[TimeControl "40/5400+30:1800+30"]

1. e4 {[%emt 0:00:06]} c5 {[%emt 0:00:21]} 2. c3 {[%emt 0:00:14]} d5 {[%emt 0:00:23]} 3. exd5 {[%emt 0:00:17]} Qxd5 {[%emt 0:00:12]} 4. d4 {[%emt 0:00:27]} Nc6 {[%emt 0:00:10]} 5. Nf3 {[%emt 0:00:23]} Bf5 {[%emt 0:00:06]} 6. Be3 {[%emt 0:05:03]} cxd4 {[%emt 0:00:34]} 7. Nxd4 {[%emt 0:06:46]} Nf6 {[%emt 0:00:08]} 8. Nxf5 {[%emt 0:00:44]} Qxf5 {[%emt 0:00:06]} 9. Be2 {[%emt 0:09:30]} e6 {[%emt 0:04:47]} 10. Qb3 {[%emt 0:02:23]} O-O-O {[%emt 0:03:22]} 11. Qc4 {[%emt 0:06:53]} Qd5 {[%emt 0:04:06]} 12. Nd2 {[%emt 0:03:05]} Qxc4 {[%emt 0:02:33]} 13. Nxc4 {[%emt 0:03:34]} Nd5 {[%emt 0:01:40]} 14. Bd2 {[%emt 0:01:20]} Be7 {[%emt 0:03:05]} 15. g3 {[%emt 0:03:44]} Bf6 {[%emt 0:08:55]} 16. O-O-O {[%emt 0:01:39]} Rd7 {[%emt 0:06:14]} 17. Ne3 {[%emt 0:07:41]} Rhd8 {[%emt 0:12:19]} 18. Nxd5 {[%emt 0:01:23]} Rxd5 {[%emt 0:00:07]} 19. Be3 {[%emt 0:01:20]} Rxd1+ {[%emt 0:03:57]} 1/2-1/2

[Event "LEM Niedersachsen-A-Open 2025"]
[Site "Verden"]
[Date "2025.01.03"]
[Round "4.14"]
[White "Freise, Linus"]
[Black "Belakhin, Alexander"]
[Result "1/2-1/2"]
[ECO "B13"]
[WhiteElo "1723"]
[BlackElo "1945"]
[Annotator "NA RC"]
[PlyCount "60"]
[EventDate "2024.12.27"]
[EventType "swiss"]
[EventCountry "GER"]
[SourceTitle "playchess.com"]
[Source "ChessBase"]
[SourceQuality "1"]
[TimeControl "40/5400+30:1800+30"]

1. e4 {[%emt 0:00:03]} c6 {[%emt 0:00:38]} 2. d4 {[%emt 0:02:38]} d5 {[%emt 0:00:18]} 3. exd5 {[%emt 0:00:07]} cxd5 {[%emt 0:00:07]} 4. Bd3 {[%emt 0:00:04]} Nc6 {[%emt 0:00:20]} 5. c3 {[%emt 0:01:04]} Qc7 {[%emt 0:00:07]} 6. h3 {[%emt 0:01:59]} g6 {[%emt 0:01:19]} 7. Nf3 {[%emt 0:01:23]} Nf6 {[%emt 0:04:32]} 8. O-O {[%emt 0:02:52]} Bf5 {[%emt 0:01:34]} 9. Re1 {[%emt 0:03:54]} Bxd3 {[%emt 0:04:46]} 10. Qxd3 {[%emt 0:00:08]} Bg7 {[%emt 0:00:37]} 11. Nbd2 {[%emt 0:06:51]} O-O {[%emt 0:00:45]} 12. Nf1 {[%emt 0:07:01]} a6 {[%emt 0:06:09]} 13. Ng3 {[%emt 0:08:18]} Rfc8 {[%emt 0:07:02]} 14. Bd2 {[%emt 0:01:52]} e6 {[%emt 0:07:57]} 15. h4 {[%emt 0:08:49]} h5 {[%emt 0:14:45]} 16. Re2 {[%emt 0:06:30]} Na5 {[%emt 0:05:40]} 17. Rae1 {[%emt 0:03:13]} Nc4 {[%emt 0:01:51]} 18. Bc1 {[%emt 0:01:10]} Nd6 {[%emt 0:01:22]} 19. Ng5 {[%emt 0:05:17]} Re8 {[%emt 0:05:48]} 20. Bf4 {[%emt 0:02:05]} Qd7 {[%emt 0:00:49]} 21. Be5 {[%emt 0:07:00]} Nc4 {[%emt 0:01:40]} 22. f4 {[%emt 0:03:05]} Nd6 {[%emt 0:05:34]} 23. Rf1 {[%emt 0:08:31]} Re7 {[%emt 0:03:35]} 24. Rfe1 {[%emt 0:01:25]} Rae8 {[%emt 0:00:49]} 25. Qf3 {[%emt 0:00:59]} Nc4 {[%emt 0:04:48]} 26. Qd3 {[%emt 0:01:50]} Nd6 {[%emt 0:03:52]} 27. Qc2 {[%emt 0:01:35]} Rc8 {[%emt 0:02:29]} 28. Qd3 {[%emt 0:00:22]} Qb5 {[%emt 0:00:43]} 29. Qb1 {[%emt 0:02:06]} Qd7 {[%emt 0:01:18]} 30. Qd3 {[%emt 0:00:22]} Qb5 {[%emt 0:14:16]} 1/2-1/2

[Event "LEM Niedersachsen-A-Open 2025"]
[Site "Verden"]
[Date "2025.01.03"]
[Round "4.15"]
[White "Aden, Meino"]
[Black "Bangert, Jonas"]
[Result "1-0"]
[ECO "D66"]
[WhiteElo "1933"]
[BlackElo "1894"]
[Annotator "RC"]
[PlyCount "117"]
[EventDate "2024.12.27"]
[EventType "swiss"]
[EventCountry "GER"]
[SourceTitle "playchess.com"]
[Source "ChessBase"]
[SourceQuality "1"]
[TimeControl "40/5400+30:1800+30"]

1. d4 {[%emt 0:00:02]} Nf6 {[%emt 0:00:07]} 2. Nf3 {[%emt 0:00:04]} d5 {[%emt 1:31:23]} 3. c4 {[%emt 0:00:52]} c6 {[%emt 0:00:00]} 4. Nc3 {[%emt 0:00:14]} e6 {[%emt 0:00:00]} 5. Bg5 {[%emt 0:00:44]} Be7 {[%emt 0:00:00]} 6. e3 {[%emt 0:00:21]} O-O {[%emt 0:00:00]} 7. Bd3 {[%emt 0:00:09]} h6 {[%emt 0:00:00]} 8. Bh4 {[%emt 0:00:06]} Nbd7 {[%emt 0:00:00]} 9. O-O {[%emt 0:00:09]} b6 {[%emt 0:00:00]} 10. Rc1 {[%emt 0:00:40]} dxc4 {[%emt 0:00:00]} 11. Bxc4 {[%emt 0:00:13]} Bb7 {[%emt 0:00:00]} 12. Qe2 {[%emt 0:01:04]} Nd5 {[%emt 0:00:00]} 13. Bg3 {[%emt 0:00:44]} Nxc3 {[%emt 0:00:00]} 14. Rxc3 {[%emt 0:00:26]} Nf6 {[%emt 0:00:00]} 15. Bd3 {[%emt 0:07:14]} Nd5 {[%emt 0:00:00]} 16. Rcc1 {[%emt 0:00:12]} Nb4 {[%emt 0:00:00]} 17. Bc4 {[%emt 0:04:56]} a5 {[%emt 0:00:00]} 18. a3 {[%emt 0:04:11]} Na6 {[%emt 0:00:00]} 19. Rfd1 {[%emt 0:00:59]} b5 {[%emt 0:00:00]} 20. Bd3 {[%emt 0:01:22]} Qb6 {[%emt 0:00:00]} 21. Ne5 {[%emt 0:01:07]} Rad8 {[%emt 0:00:00]} 22. Qg4 {[%emt 0:01:34]} f5 {[%emt 0:00:00]} 23. Qg6 {[%emt 0:05:07]} Rf6 {[%emt 0:00:00]} 24. Qh5 {[%emt 0:00:11]} Kh7 {[%emt 0:00:00]} 25. Nf7 {[%emt 0:03:09]} Rf8 {[%emt 0:00:00]} 26. Ne5 {[%emt 0:04:39]} Rd8 {[%emt 0:00:00]} 27. Bh4 {[%emt 0:02:10]} g6 {[%emt 0:00:00]} 28. Qe2 {[%emt 0:03:19]} g5 {[%emt 0:00:00]} 29. Bxg5 {[%emt 0:01:07]} hxg5 {[%emt 0:00:00]} 30. Qh5+ {[%emt 0:00:06]} Kg7 {[%emt 0:00:00]} 31. Qxg5+ {[%emt 0:00:08]} Kh7 {[%emt 0:00:00]} 32. Ng4 {[%emt 0:00:58]} Rdf8 {[%emt 0:00:00]} 33. Qh5+ {[%emt 0:01:59]} Kg7 {[%emt 0:00:00]} 34. Nxf6 {[%emt 0:01:11]} Bxf6 {[%emt 0:00:00]} 35. e4 {[%emt 0:05:25]} Rh8 {[%emt 0:00:00]} 36. Qf3 {[%emt 0:00:06]} c5 {[%emt 0:00:00]} 37. Qg3+ {[%emt 0:01:16]} Kf7 {[%emt 0:00:00]} 38. dxc5 {[%emt 0:10:46]} Nxc5 {[%emt 0:00:45]} 39. Qe3 {[%emt 0:01:52]} Rc8 {[%emt 0:06:38]} 40. b4 {[%emt 0:02:23]} axb4 {[%emt 0:00:12]} 41. axb4 {[%emt 0:30:10]} Nd7 {[%emt 0:32:12]} 42. Qxb6 {[%emt 0:01:58]} Nxb6 {[%emt 0:00:02]} 43. exf5 {[%emt 0:00:27]} exf5 {[%emt 0:02:16]} 44. Bxb5 {[%emt 0:03:08]} Be7 {[%emt 0:05:01]} 45. Bd3 {[%emt 0:03:37]} Bxb4 {[%emt 0:00:00]} 46. Bxf5 {[%emt 0:00:00]} Rxc1 {[%emt 0:00:00]} 47. Rxc1 {[%emt 0:00:00]} Kf6 {[%emt 0:00:00]} 48. Rb1 {[%emt 0:00:00]} Bc5 {[%emt 0:00:00]} 49. Bd3 {[%emt 0:00:00]} Bc8 {[%emt 0:00:00]} 50. Rc1 {[%emt 0:00:00]} Bd4 {[%emt 0:00:00]} 51. Rc6+ {[%emt 0:00:00]} Ke5 {[%emt 0:00:00]} 52. h4 {[%emt 0:00:00]} Bg4 {[%emt 0:00:00]} 53. Rg6 {[%emt 0:00:00]} Bd1 {[%emt 0:00:00]} 54. h5 {[%emt 0:00:00]} Nd5 {[%emt 0:00:00]} 55. Rg5+ {[%emt 0:00:00]} Kd6 {[%emt 0:00:00]} 56. h6 {[%emt 0:00:00]} Nf4 {[%emt 0:00:00]} 57. Be4 {[%emt 0:00:00]} Ne6 {[%emt 0:00:00]} 58. Rd5+ {[%emt 0:00:00]} Ke7 {[%emt 0:00:00]} 59. Rxd4 {[%emt 0:00:00]} 1-0